bitfinex/quotes_SOLUSD_20260102
["timestamp","ask_amount","ask_price","bid_price","bid_amount"]
[1767382531344,3.1103957,131.5,131.46,8.31650604]
[1767382533974,0.68359358,131.5,131.47,8.31616208]
[1767382534158,0.68359358,131.5,131.46,8.31656578]
[1767382534469,3.1103957,131.5,131.47,0.70994962]
[1767382536271,10.71496054,131.5,131.47,0.70994962]
[1767382536567,10.71496054,131.5,131.46,8.31656578]
[1767382537171,3.1103957,131.5,131.46,8.31656578]
[1767382537484,10.71498543,131.5,131.46,8.31656578]
[1767382538669,8.28818331,131.5,131.46,8.31656578]
[1767382538870,3.1103957,131.5,131.46,8.31656578]
[1767382539178,0.68359358,131.5,131.46,8.31656578]
[1767382540269,0.68359358,131.5,131.47,0.70994962]
[1767382541976,0.68359358,131.5,131.47,8.31617334]
[1767382543876,0.68359358,131.5,131.47,0.70994962]
[1767382544051,0.68359358,131.5,131.47,8.31613257]
[1767382545063,3.1103957,131.48,131.45,8.31711208]
[1767382545452,3.0803957,131.48,131.45,8.31711208]
[1767382545950,0.68359358,131.45,131.44,0.2]
[1767382546171,2.42680212,131.45,131.44,0.2]
[1767382546372,3.1103957,131.46,131.44,0.2]
[1767382547479,2.42680212,131.46,131.44,0.2]
[1767382548369,3.1103957,131.47,131.44,8.51782408]
[1767382548578,3.1103957,131.47,131.44,0.90994962]
[1767382548876,10.71682545,131.47,131.44,0.90994962]
[1767382549070,3.1103957,131.46,131.44,0.2]
[1767382551480,0.68359358,131.46,131.44,0.2]
[1767382552286,3.1103957,131.47,131.44,0.90994962]
[1767382553890,0.68359358,131.47,131.44,8.51789389]
[1767382554084,22.16899318,131.49,131.45,0.70994962]
[1767382554283,5.68342562,131.48,131.45,0.70994962]
[1767382554485,24.5657953,131.49,131.45,0.70994962]
[1767382557276,24.5657953,131.49,131.46,0.70994962]
[1767382557683,13.85,131.49,131.46,0.70994962]
[1767382559700,16.27680212,131.49,131.46,0.70994962]
[1767382559883,16.27680212,131.49,131.46,8.31681756]
[1767382560197,16.27680212,131.49,131.46,0.70994962]
[1767382560596,0.72403723,131.54,131.49,0.70529294]
[1767382560786,3.15083935,131.54,131.49,2.42680212]
[1767382560988,3.15083935,131.54,131.47,13.88]
[1767382561194,6.40565516,131.53,131.49,2.42680212]
[1767382561499,8.32595966,131.55,131.49,2.42680212]
[1767382561690,8.83166288,131.54,131.5,7.60456273]
[1767382561869,3.15083935,131.54,131.5,7.60456273]
[1767382565489,10.75319512,131.54,131.5,7.60456273]
[1767382566802,0.72403723,131.53,131.5,7.60456273]
[1767382569901,0.72403723,131.53,131.5,29.04277169]
[1767382570107,0.72403723,131.54,131.5,29.04277169]
[1767382570403,0.72403723,131.54,131.5,10.03136485]
[1767382571504,0.72403723,131.54,131.48,26.61914011]
[1767382571711,0.72403723,131.53,131.49,2.42680212]
[1767382571887,0.72403723,131.53,131.5,0.4572]
[1767382573311,0.72403723,131.53,131.48,26.61914011]
[1767382573312,0.72403723,131.51,131.47,61.2]
[1767382573513,0.72403723,131.49,131.45,0.4572]
[1767382573717,0.72403723,131.49,131.45,2.88400212]
[1767382574017,3.15083935,131.49,131.45,0.4572]
[1767382574213,0.72403723,131.48,131.44,35.98327274]
[1767382574394,2.42680212,131.47,131.44,0.2]
[1767382575611,24.52462106,131.52,131.44,0.6872]
[1767382575814,13.27938165,131.51,131.45,8.09435128]
[1767382576129,2.42680212,131.48,131.45,8.09435128]
[1767382577415,3.15083935,131.47,131.44,7.80784748]
[1767382577994,0.72403723,131.46,131.44,7.80784748]
[1767382579912,2.42680212,131.47,131.44,7.80784748]
[1767382580117,3.15083935,131.47,131.44,7.80784748]
[1767382580323,3.15083935,131.46,131.44,0.2]
[1767382583602,2.59221074,131.46,131.44,0.2]
[1767382584224,2.59221074,131.45,131.44,0.2]
[1767382584410,2.59221074,131.45,131.42,7.80891356]
[1767382585604,2.59221074,131.43,131.42,0.2]
[1767382587303,2.59221074,131.43,131.41,7.80976311]
[1767382588927,7.60763502,131.45,131.4,0.2]
[1767382588928,0.69527969,131.41,131.4,0.2]
[1767382589116,1.86817351,131.39,131.38,0.2]
[1767382589728,0.68268607,131.38,131.36,0.2]
[1767382589908,2.55085958,131.38,131.36,0.2]
[1767382590108,2.55085958,131.38,131.36,7.8125348]
[1767382590309,0.68268607,131.39,131.36,7.8125348]
[1767382590530,2.92261556,131.38,131.36,8.50788407]
[1767382591037,2.92261556,131.38,131.36,7.8125348]
[1767382591541,2.92261556,131.38,131.36,0.2]
[1767382591542,2.92261556,131.37,131.36,0.2]
[1767382592200,3.60530163,131.38,131.36,0.2]
[1767382593226,2.92261556,131.37,131.36,0.2]
[1767382594029,3.60530163,131.38,131.36,0.2]
[1767382594637,2.92261556,131.39,131.36,8.5079602]
[1767382596833,3.60530163,131.39,131.36,8.5079602]
[1767382597015,2.92261556,131.39,131.36,8.5079602]
[1767382598217,0.68268607,131.4,131.37,8.30734419]
[1767382598537,3.60487958,131.4,131.37,8.30734419]
[1767382599635,2.92219351,131.4,131.38,0.69534927]
[1767382599934,0.68268607,131.44,131.39,0.69534927]
[1767382600236,0.68268607,131.44,131.38,2.92219351]
[1767382600237,3.60487958,131.45,131.41,0.69534927]
[1767382600920,0.68268607,131.44,131.41,0.69534927]
[1767382601121,0.68268607,131.44,131.41,8.30480816]
[1767382601931,0.68268607,131.44,131.41,11.22700167]
[1767382602226,0.68268607,131.46,131.43,0.69534927]
[1767382602415,0.68268607,131.47,131.43,3.61754278]
[1767382602623,0.68268607,131.48,131.44,0.69534927]
[1767382602829,0.68268607,131.48,131.45,0.69534927]
[1767382603008,3.60487958,131.5,131.46,0.69534927]
[1767382603332,0.68268607,131.47,131.45,7.60690522]
[1767382603636,0.68268607,131.46,131.44,7.60785273]
[1767382604336,2.92219351,131.47,131.44,8.303202]
[1767382605735,3.60487958,131.48,131.44,8.303202]
[1767382609037,3.60487958,131.47,131.43,22.20369391]
[1767382609335,0.68268607,131.46,131.43,21.50834464]
[1767382609544,3.60487958,131.44,131.4,19.72034411]
[1767382609912,0.68268607,131.44,131.41,7.60957348]
[1767382610117,0.68268607,131.44,131.4,3.61754278]
[1767382611036,3.60487958,131.44,131.41,7.6095547]
[1767382611241,3.60487958,131.44,131.4,8.30541966]
[1767382612326,3.60487958,131.44,131.4,11.22761317]
[1767382612526,3.60487958,131.44,131.4,8.30541966]
[1767382612734,3.60487958,131.44,131.4,11.22761317]
[1767382612926,3.60487958,131.44,131.4,8.30541966]
[1767382613243,3.60487958,131.44,131.4,11.22761317]
[1767382616543,0.68268607,131.44,131.4,11.22761317]
[1767382616943,0.68268607,131.44,131.4,8.30541966]
[1767382617137,3.60487958,131.44,131.4,11.22761317]
[1767382620038,3.60487958,131.44,131.4,8.30541966]
[1767382620251,3.60487958,131.44,131.4,11.22761317]
[1767382621853,0.68268607,131.44,131.4,11.22761317]
[1767382622732,3.60487958,131.44,131.4,8.30541966]
[1767382622932,3.60487958,131.44,131.4,11.22761317]
[1767382624048,0.68268607,131.44,131.4,11.22761317]
[1767382624560,3.64147796,131.45,131.41,0.6692816]
[1767382624757,0.71928445,131.47,131.44,0.6692816]
[1767382625064,0.71928445,131.47,131.44,3.56251828]
[1767382625355,0.71928445,131.48,131.45,2.92219351]
[1767382625537,0.71928445,131.49,131.46,2.92219351]
[1767382626236,0.71928445,131.49,131.46,2.91713967]
[1767382626436,0.71928445,131.48,131.44,16.81713967]
[1767382626747,0.71928445,131.47,131.44,13.9]
[1767382627053,0.71928445,131.47,131.44,22.17690232]
[1767382627930,0.71928445,131.47,131.44,25.09404199]
[1767382629038,0.71928445,131.47,131.44,22.17690232]
[1767382629357,2.91713967,131.48,131.45,0.6692816]
[1767382629532,0.71928445,131.5,131.46,3.55785297]
[1767382629737,0.71928445,131.49,131.46,0.6407133]
[1767382630355,0.71928445,131.48,131.44,24.42476039]
[1767382631462,0.71928445,131.48,131.45,8.27630223]
[1767382631760,0.71928445,131.5,131.47,3.58642127]
[1767382631960,19.00790665,131.53,131.45,7.60702063]
[1767382631961,0.71928445,131.52,131.48,3.58642127]
[1767382632478,0.71928445,131.51,131.47,2.91713967]
[1767382632786,3.63642412,131.51,131.46,3.58642127]
[1767382633085,0.71928445,131.5,131.46,3.58642127]
[1767382633586,0.71928445,131.5,131.47,8.27557961]
[1767382639498,0.71928445,131.52,131.49,3.58642127]
[1767382639662,0.71928445,131.52,131.49,0.6692816]
[1767382640758,11.23894211,131.54,131.5,0.6692816]
[1767382641584,3.63642412,131.54,131.5,0.6692816]
[1767382642683,3.63642412,131.54,131.5,8.27374362]
[1767382642891,0.71928445,131.54,131.5,11.19088329]
[1767382643087,0.71928445,131.55,131.51,0.6692816]
[1767382643275,11.23820197,131.55,131.51,0.6692816]
[1767382644694,11.23820197,131.55,131.51,8.27317414]
[1767382646578,2.91713967,131.54,131.51,8.27317414]
[1767382647084,0.71928445,131.53,131.49,0.6692816]
[1767382647281,0.70245912,131.52,131.49,0.6692816]
[1767382647579,3.61959879,131.52,131.49,0.6692816]
[1767382648089,3.61959879,131.52,131.49,8.27438523]
[1767382648792,0.70245912,131.52,131.49,8.27438523]
[1767382649375,0.67884848,131.51,131.48,8.26552085]
[1767382649691,3.59598815,131.51,131.47,3.57724276]
[1767382649997,0.67884848,131.51,131.48,8.26544197]
[1767382650381,8.2805545,131.55,131.51,0.66010309]
[1767382650700,0.67884848,131.54,131.51,0.66010309]
[1767382651391,0.67884848,131.53,131.49,27.27778604]
[1767382651595,2.54457806,131.53,131.49,27.27778604]
[1767382652394,0.67884848,131.52,131.49,8.26493336]
[1767382653901,0.67884848,131.52,131.49,7.60483027]
[1767382654593,0.67884848,131.52,131.49,10.13066294]
[1767382656095,0.67884848,131.52,131.49,8.26493336]
[1767382656396,0.67884848,131.52,131.49,0.66010309]
[1767382656597,0.67884848,131.52,131.49,8.26510795]
[1767382659381,0.67884848,131.51,131.48,7.6057195]
[1767382659593,0.67884848,131.5,131.47,7.60608788]
[1767382660714,0.67884848,131.5,131.47,8.26619097]
[1767382666708,1.86572958,131.52,131.48,0.66010309]
[1767382666888,2.54457806,131.53,131.49,0.66010309]
[1767382667198,2.54457806,131.51,131.47,27.281936]
[1767382667803,0.67884848,131.51,131.48,0.66010309]
[1767382668103,0.67884848,131.51,131.48,8.26555547]
[1767382670406,0.67884848,131.54,131.51,0.66010309]
[1767382670915,0.67884848,131.54,131.51,2.52583267]
[1767382671119,0.67884848,131.54,131.51,0.66010309]
[1767382671283,0.67884848,131.54,131.51,1.86572958]
[1767382671483,0.67884848,131.54,131.5,2.52583267]
[1767382671689,0.67884848,131.54,131.51,1.86572958]
[1767382672311,0.67884848,131.54,131.5,2.52583267]
[1767382672603,0.67884848,131.53,131.5,7.60449929]
[1767382677227,0.67884848,131.52,131.49,7.60490752]
[1767382679120,0.67884848,131.52,131.49,8.26501061]
[1767382680730,0.67884848,131.52,131.49,10.13074019]
[1767382682216,0.67884848,131.52,131.49,8.26501061]
[1767382682414,0.67884848,131.52,131.49,7.60490752]
[1767382685231,0.67884848,131.52,131.48,10.69051701]
[1767382686227,3.10539393,131.52,131.48,10.69051701]
[1767382686435,0.70590988,131.5,131.47,3.08507489]
[1767382686731,0.70590988,131.5,131.45,75.08]
[1767382686732,0.70590988,131.53,131.5,0.65852944]
[1767382686931,0.70590988,131.55,131.52,3.08507489]
[1767382687115,0.70590988,131.55,131.53,2.42654545]
[1767382687929,0.70590988,131.55,131.52,3.08507489]
[1767382688134,0.70590988,131.56,131.53,3.08507489]
[1767382688425,5.69238335,131.55,131.53,3.08507489]
[1767382688631,0.70590988,131.56,131.53,2.42654545]
[1767382688833,6.39754795,131.55,131.53,2.42654545]
[1767382689132,0.70590988,131.55,131.53,2.42654545]
[1767382690234,0.70590988,131.55,131.52,10.02981473]
[1767382691612,0.70590988,131.57,131.54,3.08507489]
[1767382691813,2.52654545,131.6,131.56,2.42654545]
[1767382692125,5.68788627,131.59,131.56,2.42654545]
[1767382692340,10.12539626,131.6,131.55,10.68640302]
[1767382692519,5.68417241,131.59,131.55,10.68640302]
[1767382692718,10.12539626,131.6,131.55,10.68640302]
[1767382692919,5.68417241,131.59,131.55,10.68640302]
[1767382693115,10.12539626,131.6,131.55,10.02787358]
[1767382693320,5.68417241,131.59,131.55,2.42654545]
[1767382693637,10.12539626,131.6,131.54,8.26049821]
[1767382693847,0.70590988,131.58,131.55,2.42654545]
[1767382694230,0.70590988,131.58,131.55,10.0280683]
[1767382695738,0.70590988,131.58,131.54,8.26051861]
[1767382695937,0.70590988,131.58,131.54,10.68706406]
[1767382698142,0.70590988,131.58,131.54,8.26051861]
[1767382698443,0.70590988,131.58,131.54,10.68706406]
[1767382701823,0.70590988,131.58,131.55,2.42654545]
[1767382702529,0.70590988,131.58,131.55,0.65852944]
[1767382702723,0.1,131.6,131.58,0.65852944]
[1767382702943,0.1,131.6,131.57,10.02662846]
[1767382703346,0.80590988,131.6,131.57,10.02662846]
[1767382704953,0.80590988,131.6,131.58,2.42654545]
[1767382705751,0.80590988,131.6,131.57,10.6851579]
[1767382706647,0.80590988,131.6,131.58,2.42654545]
[1767382706951,0.80590988,131.6,131.57,8.25861245]
[1767382707154,0.80590988,131.6,131.58,2.42654545]
[1767382708557,0.1,131.6,131.58,3.07974969]
[1767382709155,0.1,131.6,131.58,10.67951887]
[1767382710553,0.1,131.6,131.58,12.03877004]
[1767382711235,0.1,131.6,131.59,3.78579662]
[1767382711437,0.1,131.62,131.6,0.67999853]
[1767382711754,0.1,131.62,131.59,4.46579515]
[1767382713256,0.7882627,131.62,131.6,7.59878419]
[1767382714553,0.7882627,131.62,131.6,11.38458081]
[1767382715342,0.1,131.62,131.6,12.08009839]
[1767382715656,0.1,131.62,131.61,0.69551758]
[1767382716060,0.1,131.62,131.6,12.07633125]
[1767382716665,0.1,131.64,131.62,0.69175044]
[1767382716839,0.1,131.64,131.63,4.47754706]
[1767382717038,0.1,131.64,131.63,0.69175044]
[1767382717233,0.1,131.64,131.62,4.47754706]
[1767382718358,0.1,131.64,131.62,12.07504919]
[1767382718545,0.1,131.64,131.62,8.28925257]
[1767382718743,0.1,131.64,131.62,12.07504919]
[1767382718948,0.1,131.64,131.62,8.28925257]
[1767382719144,0.81786866,131.64,131.62,7.59750213]
[1767382719764,0.81786866,131.64,131.62,11.38329875]
[1767382720060,0.81786866,131.64,131.62,7.59754695]
[1767382721860,0.67292211,131.63,131.59,18.38056553]
[1767382722259,0.67292211,131.63,131.6,8.31302185]
[1767382723464,0.67292211,131.63,131.6,7.59825294]
[1767382723768,0.71371584,131.62,131.59,22.16397724]
[1767382724270,0.71371584,131.62,131.59,7.59909562]
[1767382724644,0.71371584,131.59,131.56,7.60082272]
[1767382724849,4.49951246,131.59,131.56,7.60082272]
[1767382725052,0.71371584,131.61,131.58,0.68488162]
[1767382725341,0.71371584,131.6,131.57,8.28519397]
[1767382725546,0.71371584,131.59,131.57,7.60031235]
[1767382727268,0.71371584,131.59,131.56,0.68488162]
[1767382727475,4.49951246,131.59,131.56,0.68488162]
[1767382727969,0.71371584,131.58,131.55,8.28598556]
[1767382728673,0.71371584,131.57,131.54,21.48202781]
[1767382728970,0.71371584,131.57,131.54,7.60202781]
[1767382729271,0.71371584,131.57,131.54,8.28690943]
[1767382730376,3.78579662,131.59,131.55,4.47067824]
[1767382730853,3.78579662,131.59,131.55,0.68488162]
[1767382731272,3.78579662,131.59,131.55,8.28601995]
[1767382731770,21.47839985,131.61,131.56,0.68488162]
[1767382731951,3.78579662,131.6,131.56,0.68488162]
[1767382732454,4.50612845,131.6,131.56,0.68488162]
[1767382733473,0.72033183,131.6,131.57,0.66747822]
[1767382733773,0.72033183,131.61,131.58,0.66747822]
[1767382734474,0.72033183,131.62,131.59,0.66747822]
[1767382734773,4.50612845,131.62,131.59,0.66747822]
[1767382736474,4.50612845,131.62,131.58,8.26687306]
[1767382736682,0.15713568,131.61,131.58,8.26687306]
[1767382738180,4.50612845,131.62,131.58,8.26687306]
[1767382738358,0.72033183,131.63,131.59,0.66747822]
[1767382738675,4.50612845,131.63,131.59,0.66747822]
[1767382738855,3.9429323,131.62,131.58,8.26687306]
[1767382739278,4.50049648,131.61,131.58,7.59939484]
[1767382739872,0.71469986,131.61,131.58,8.25932697]
[1767382740265,4.50049648,131.61,131.58,8.25932697]
[1767382740669,0.71469986,131.61,131.58,8.25932697]
[1767382741178,4.43850828,131.62,131.58,8.25932697]
[1767382741680,12.03600237,131.63,131.59,0.65993213]
[1767382741868,3.78579662,131.62,131.59,0.65993213]
[1767382742075,4.00987626,131.62,131.59,0.65993213]
[1767382743781,4.00987626,131.62,131.58,8.25932697]
[1767382744279,0.2283231,131.6,131.58,7.59939484]
[1767382744581,0.2283231,131.6,131.57,7.60022517]
[1767382745158,4.43002094,131.59,131.56,7.60093139]
[1767382745482,4.43002094,131.59,131.56,8.26086352]
[1767382745783,0.64422432,131.59,131.56,8.26086352]
[1767382746855,4.43002094,131.59,131.56,8.26086352]
[1767382747052,0.64422432,131.59,131.56,8.26086352]
[1767382750583,4.43002094,131.59,131.56,7.60093139]
[1767382750883,0.64422432,131.59,131.56,12.04666014]
[1767382753786,0.64422432,131.59,131.57,3.78579662]
[1767382754281,0.65271166,131.6,131.57,11.38618569]
[1767382754587,0.65271166,131.6,131.58,3.78579662]
[1767382756487,0.65271166,131.6,131.56,8.2607296]
[1767382756791,0.65271166,131.6,131.58,3.78579662]
[1767382758788,0.65271166,131.6,131.57,8.26036547]
[1767382759092,8.25060277,131.62,131.59,3.78579662]
[1767382759276,0.22407964,131.61,131.59,3.78579662]
[1767382760590,0.22407964,131.62,131.59,11.38502981]
[1767382760886,0.65271166,131.63,131.6,4.44572875]
[1767382761092,0.65271166,131.63,131.6,3.78579662]
[1767382761389,0.65271166,131.63,131.61,3.78579662]
[1767382761790,0.65271166,131.63,131.6,4.44572875]
[1767382762170,0.1,131.66,131.64,0.65993213]
[1767382762365,5.67650494,131.65,131.64,4.4169514]
[1767382762587,0.1,131.66,131.64,4.4169514]
[1767382762783,0.1,131.66,131.65,3.78579662]
[1767382762977,0.1,131.66,131.64,4.4169514]
[1767382763193,0.1,131.66,131.64,3.78579662]
[1767382763578,0.1,131.66,131.65,3.78579662]
[1767382763773,0.1,131.68,131.65,3.78579662]
[1767382763993,0.1,131.68,131.66,3.78579662]
[1767382765482,0.1,131.68,131.65,3.78579662]
[1767382765908,0.25512043,131.67,131.63,0.65993213]
[1767382766208,0.25512043,131.67,131.64,3.78579662]
[1767382766400,0.25512043,131.67,131.65,3.78579662]
[1767382766894,0.1,131.68,131.66,3.78579662]
[1767382767277,0.199,131.68,131.66,3.78579662]
[1767382768979,7.79317133,131.68,131.65,3.78579662]
[1767382771392,7.79317133,131.68,131.66,3.78579662]
[1767382771393,0.199,131.68,131.66,3.78579662]
[1767382771577,7.79323918,131.68,131.65,4.46202892]
[1767382772202,11.5790358,131.68,131.64,0.6762323]
[1767382772502,7.79323918,131.68,131.64,4.46202892]
[1767382772694,7.79323918,131.68,131.64,3.09693989]
[1767382773490,0.25355922,131.67,131.64,2.42070759]
[1767382773788,0.10054559,131.66,131.64,2.42070759]
[1767382774201,7.84989481,131.67,131.64,2.42070759]
[1767382774583,7.84989481,131.67,131.63,3.09693989]
[1767382774584,0.099,131.66,131.63,3.09693989]
[1767382774896,0.099,131.66,131.63,0.6762323]
[1767382775076,2.51970759,131.66,131.63,0.6762323]
[1767382775904,10.1151209,131.66,131.63,0.6762323]
[1767382778707,0.099,131.66,131.63,0.6762323]
[1767382778896,7.59495001,131.67,131.64,0.6762323]
[1767382779208,24.07437619,131.68,131.64,3.09693989]
[1767382781008,24.07437619,131.68,131.64,0.6762323]
[1767382782098,0.25355922,131.67,131.64,0.6762323]
[1767382782298,24.23049662,131.68,131.64,0.6762323]
[1767382783007,21.80978903,131.68,131.64,0.6762323]
[1767382783214,2.51970759,131.67,131.64,0.6762323]
[1767382784212,10.11451419,131.67,131.64,0.6762323]
[1767382784583,10.11451419,131.67,131.63,0.6762323]
[1767382784790,2.42070759,131.66,131.63,0.6762323]
[1767382786411,7.6938066,131.67,131.63,0.6762323]
[1767382786594,2.42070759,131.66,131.63,0.6762323]
[1767382789105,10.11451419,131.67,131.63,0.6762323]
[1767382789301,0.1,131.68,131.65,0.6762323]
[1767382789717,0.1,131.68,131.65,3.09693989]
[1767382790034,0.1,131.68,131.67,0.6762323]
[1767382791223,0.1,131.68,131.66,0.6762323]
[1767382792495,0.1,131.68,131.67,0.6762323]
[1767382796022,0.1,131.68,131.66,8.27140588]
[1767382796330,0.1,131.68,131.67,0.6762323]
[1767382798037,0.1,131.72,131.69,0.6762323]
[1767382798233,0.1,131.72,131.7,0.6762323]
[1767382798424,2.52070759,131.72,131.69,0.6762323]
[1767382798606,2.61970759,131.72,131.69,0.6762323]
[1767382798930,2.87582802,131.72,131.68,0.6762323]
[1767382799226,2.42070759,131.7,131.67,0.6762323]
[1767382799611,2.51970759,131.71,131.67,0.6762323]
[1767382800125,10.36628123,131.7,131.66,8.29624523]
[1767382800328,10.36628123,131.7,131.66,0.70121204]
[1767382800547,7.94779444,131.71,131.67,0.70121204]
[1767382800833,10.36850203,131.71,131.67,0.70121204]
[1767382801006,2.51970759,131.7,131.67,0.70121204]
[1767382801207,0.10153559,131.68,131.64,3.12191963]
[1767382801404,2.77075658,131.67,131.64,0.70121204]
[1767382803037,10.37034024,131.68,131.64,0.70121204]
[1767382803412,10.01455801,131.69,131.65,0.70121204]
[1767382803629,2.42070759,131.69,131.65,0.70121204]
[1767382804335,2.42070759,131.69,131.66,0.70121204]
[1767382805343,7.59330569,131.7,131.66,0.70121204]
[1767382805515,2.42070759,131.7,131.67,0.70121204]
[1767382805837,2.42070759,131.7,131.66,7.59520329]
[1767382805838,2.42070759,131.69,131.66,0.70121204]
[1767382806215,21.80781282,131.71,131.67,0.70121204]
[1767382806412,2.42070759,131.7,131.67,0.70121204]
[1767382806810,21.80781282,131.71,131.67,0.70121204]
[1767382807033,2.42070759,131.7,131.67,0.70121204]
[1767382807229,21.80781282,131.71,131.67,0.70121204]
[1767382807434,23.87339998,131.71,131.68,0.70121204]
[1767382807730,0.10153559,131.7,131.66,8.29622637]
[1767382807912,2.42070759,131.69,131.66,8.29622637]
[1767382808112,7.59269239,131.71,131.68,0.70121204]
[1767382808416,7.79094776,131.72,131.68,0.70121204]
[1767382808615,8.09935106,131.71,131.68,0.70121204]
[1767382808837,2.42070759,131.71,131.68,0.70121204]
[1767382809246,2.77326681,131.71,131.68,0.70121204]
[1767382809942,2.77326681,131.71,131.67,7.59471794]
[1767382810135,10.36574211,131.71,131.67,0.70121204]
[1767382810942,7.94503452,131.71,131.67,0.70121204]
[1767382811143,10.36574211,131.71,131.67,0.70121204]
[1767382812440,2.52224318,131.7,131.66,0.70121204]
[1767382813241,2.42070759,131.69,131.66,0.70121204]
[1767382814634,10.11538735,131.7,131.66,0.70121204]
[1767382814942,0.35004899,131.69,131.66,0.70121204]
[1767382815116,10.01340547,131.71,131.67,0.70121204]
[1767382815309,10.36596469,131.71,131.67,0.70121204]
[1767382815516,0.35004899,131.69,131.66,0.70121204]
[1767382815723,2.77075658,131.69,131.65,0.70121204]
[1767382816127,2.77075658,131.69,131.65,8.29710587]
[1767382816650,2.7682963,131.67,131.64,0.70121204]
[1767382817019,10.0145527,131.69,131.65,0.70121204]
[1767382817330,2.42070759,131.68,131.65,0.70121204]
[1767382818014,2.77326681,131.68,131.65,0.70121204]
[1767382818214,2.42070759,131.67,131.64,0.70121204]
[1767382818444,2.52224318,131.67,131.64,0.70121204]
[1767382819239,0.10153559,131.67,131.64,0.70121204]
[1767382819434,2.52224318,131.67,131.64,0.70121204]
[1767382819643,2.77075658,131.66,131.63,8.29797531]
[1767382819938,2.77075658,131.66,131.63,0.70121204]
[1767382820143,2.42070759,131.66,131.63,0.70121204]
[1767382821916,10.37063152,131.67,131.63,0.70121204]
[1767382822843,2.42070759,131.66,131.63,0.70121204]
[1767382824422,10.01605993,131.66,131.63,0.70121204]
[1767382824950,2.42070759,131.66,131.63,0.70121204]
[1767382825950,10.0160547,131.66,131.63,0.70121204]
[1767382826134,2.42070759,131.65,131.63,0.70121204]
[1767382827842,2.42070759,131.65,131.62,0.71513777]
[1767382828045,2.42070759,131.63,131.62,0.71513777]
[1767382829544,0.10153559,131.65,131.62,0.71513777]
[1767382829850,2.42070759,131.64,131.62,0.71513777]
[1767382831046,7.69521244,131.65,131.62,0.71513777]
[1767382831047,2.42070759,131.63,131.62,0.71513777]
[1767382831254,7.59621244,131.65,131.62,0.71513777]
[1767382831435,21.45516959,131.67,131.63,0.66805847]
[1767382831637,2.42070759,131.66,131.63,0.66805847]
[1767382832851,2.42070759,131.65,131.63,0.66805847]
[1767382834554,3.78424754,131.65,131.63,0.66805847]
[1767382836850,3.78424754,131.64,131.62,0.66805847]
[1767382837040,3.78424754,131.63,131.6,0.66805847]
[1767382837242,3.78424754,131.62,131.59,0.66805847]
[1767382837641,0.10402072,131.63,131.59,8.26734898]
[1767382837856,3.78424754,131.62,131.59,8.26734898]
[1767382838872,3.78424754,131.62,131.6,0.66805847]
[1767382839344,3.88826826,131.63,131.6,0.66805847]
[1767382841456,0.10402072,131.63,131.6,0.66805847]
[1767382841641,3.88826826,131.63,131.6,0.66805847]
[1767382842763,3.78424754,131.62,131.6,0.66805847]
[1767382843366,3.78424754,131.63,131.6,0.66805847]
[1767382847070,3.78424754,131.62,131.59,8.26734898]
[1767382847370,3.78424754,131.62,131.6,0.66805847]
[1767382847968,3.78424754,131.62,131.6,1.12535847]
[1767382848871,3.75424754,131.62,131.6,1.12535847]
[1767382850175,3.78424754,131.61,131.6,0.4573]
[1767382850360,3.78424754,131.61,131.57,13.86]
[1767382850361,4.13429653,131.61,131.58,0.66805847]
[1767382850666,3.78424754,131.6,131.58,0.66805847]
[1767382853669,3.78424754,131.6,131.57,0.66805847]
[1767382856180,11.7327202,131.61,131.57,0.66805847]
[1767382856555,11.38267121,131.61,131.57,0.66805847]
[1767382856755,11.48167121,131.61,131.57,0.66805847]
[1767382857061,7.69742367,131.61,131.57,0.66805847]
[1767382857372,3.78424754,131.61,131.58,0.66805847]
[1767382857563,3.78424754,131.62,131.58,0.66805847]
[1767382857965,3.88324754,131.62,131.58,8.26780989]
[1767382858171,3.78424754,131.61,131.58,8.26780989]
[1767382858556,3.78424754,131.61,131.59,0.66805847]
[1767382860459,25.24096337,131.64,131.6,0.66417824]
[1767382860659,25.33996337,131.64,131.6,0.66417824]
[1767382860867,13.959,131.64,131.6,0.66417824]
[1767382861161,3.78424754,131.63,131.6,0.66417824]
[1767382862587,25.33977368,131.64,131.6,0.66417824]
[1767382864179,21.55552614,131.64,131.6,0.66417824]
[1767382864373,3.78424754,131.63,131.6,0.66417824]
[1767382864977,21.55552614,131.64,131.6,0.66417824]
[1767382865176,7.69552614,131.64,131.6,0.66417824]
[1767382865376,3.78424754,131.63,131.6,0.66417824]
[1767382869878,3.88324754,131.64,131.61,0.66417824]
[1767382870970,3.78424754,131.63,131.61,0.66417824]
[1767382872475,4.13680676,131.63,131.6,0.66417824]
[1767382874578,0.35255922,131.63,131.6,0.66417824]
[1767382875890,4.13680676,131.63,131.6,0.66417824]
[1767382877402,11.73386789,131.63,131.6,0.66417824]
[1767382878081,0.35255922,131.63,131.6,0.66417824]
[1767382881386,0.35004899,131.6,131.57,0.66417824]
[1767382881586,3.78424754,131.6,131.57,0.66417824]
[1767382881780,3.88324754,131.6,131.57,0.66417824]